bitfinex/quotes_ETHUSD_20241216
["timestamp","ask_amount","ask_price","bid_price","bid_amount"]
[1734351315925,0.7908,3914.6,3913.5,0.0994]
[1734351316121,0.7908,3914.6,3913.3,2.44369219]
[1734351316750,2.5547,3914.4,3913.3,3.46584219]
[1734351316962,0.7908,3914.6,3913.3,2.44369219]
[1734351317125,0.7908,3914.6,3913.7,2.44369219]
[1734351317330,0.7908,3914.6,3913.7,2.79026941]
[1734351318464,0.812,3915.8,3914.6,0.0994]
[1734351318631,0.812,3915.8,3914.9,2.44369219]
[1734351319270,0.7638,3915.4,3914.5,2.44369219]
[1734351319497,0.7638,3915.4,3914.2,0.0994]
[1734351319498,2.5541,3915.3,3914.2,0.0994]
[1734351319632,2.5541,3915.3,3914.3,0.25430922]
[1734351320273,0.7638,3915.4,3914.5,2.44369219]
[1734351320588,0.7638,3915.4,3914.6,1.0473431]
[1734351320759,0.7638,3915.4,3914.6,1.0218]
[1734351320973,0.7638,3915.4,3914.7,0.34654922]
[1734351323531,2.57355088,3917.0,3914.9,2.54309219]
[1734351323532,0.7744,3915.7,3914.9,2.54309219]
[1734351323737,0.8048,3916.0,3915.0,0.02553841]
[1734351323936,0.8419564,3916.0,3915.0,0.02553841]
[1734351324261,0.8419564,3916.0,3915.2,1.02165]
[1734351324407,0.8419564,3916.0,3915.3,0.02553811]
[1734351324708,0.8419564,3916.0,3914.9,3.56481219]
[1734351324709,0.8419564,3916.0,3915.0,1.0217]
[1734351324910,0.8419564,3916.0,3915.1,0.35647922]
[1734351325109,0.8048,3916.0,3915.1,0.35647922]
[1734351325684,0.8048,3916.0,3915.3,2.44369219]
[1734351325886,2.55329,3916.6,3915.5,1.02155]
[1734351326531,0.7893,3916.8,3915.3,2.72370933]
[1734351326672,1.51653319,3917.3,3915.3,2.72370933]
[1734351326673,0.8224,3916.6,3915.3,2.72370933]
[1734351327025,0.8224,3916.3,3915.3,3.74531933]
[1734351327174,3.37584,3916.3,3915.4,0.37453193]
[1734351327872,0.8224,3916.3,3915.4,0.37453193]
[1734351328427,0.8224,3916.3,3915.5,1.02156]
[1734351329117,0.8224,3916.3,3915.4,0.37453193]
[1734351329674,3.37583,3916.3,3915.4,0.37453193]
[1734351329993,3.37583,3916.3,3915.5,0.38398441]
[1734351330987,0.8224,3916.3,3915.5,0.38398441]
[1734351331321,0.8224,3916.3,3915.5,1.40555441]
[1734351331521,0.8224,3916.3,3915.5,0.38398441]
[1734351332185,0.81317089,3916.3,3915.5,0.38398441]
[1734351333376,0.81317089,3916.3,3915.6,0.38493066]
[1734351334824,1.04586034,3917.3,3915.7,2.46922938]
[1734351335023,1.56879052,3917.4,3915.6,0.49363066]
[1734351335024,2.55271,3917.4,3916.5,2.44369219]
[1734351335210,2.55271,3917.4,3916.2,0.1087]
[1734351335211,0.7665,3917.7,3915.7,3.50937351]
[1734351335380,0.7665,3916.5,3915.8,1.32339681]
[1734351335582,0.7665,3916.5,3915.8,0.1087]
[1734351337635,0.7665,3916.5,3915.2,1.06568132]
[1734351337636,2.55349,3916.3,3915.2,0.1087]
[1734351337932,0.331999,3916.3,3915.2,0.1087]
[1734351338077,0.7665,3916.5,3915.2,0.1087]
[1734351338282,2.55336,3916.4,3915.2,0.1087]
[1734351338511,0.7665,3916.5,3915.5,1.02157]
[1734351338714,0.7665,3916.5,3915.3,2.44369219]
[1734351338894,2.55336,3916.4,3915.3,3.46532219]
[1734351340334,0.7665,3916.5,3915.4,1.0216]
[1734351340483,0.7665,3916.5,3915.3,2.80109441]
[1734351341011,0.7665,3916.5,3915.6,1.02154]
[1734351341525,0.7665,3916.5,3915.8,1.02148]
[1734351341909,1.3812,3916.9,3915.9,0.1087]
[1734351342112,0.55,3916.7,3915.9,0.1087]
[1734351342724,0.55,3916.8,3915.9,0.1087]
[1734351343157,3.38423,3916.9,3915.9,0.1087]
[1734351343158,0.8312,3916.9,3915.9,0.1087]
[1734351343463,0.7866,3917.5,3916.6,0.1087]
[1734351344342,3.33925,3917.5,3916.6,0.1087]
[1734351344862,2.55274,3917.4,3916.3,0.1087]
[1734351345069,3.36768,3917.3,3916.0,1.13014]
[1734351345921,3.36768,3917.3,3916.0,0.1087]
[1734351346162,3.36768,3917.3,3916.1,1.0214]
[1734351346458,3.36768,3917.3,3916.4,1.02134]
[1734351346459,0.8149,3917.3,3916.4,1.02134]
[1734351346961,0.8149,3917.3,3916.4,1.36784322]
[1734351347446,0.8149,3917.3,3916.4,0.34650322]
[1734351349056,0.8149,3917.3,3916.4,1.36783322]
[1734351352743,0.8149,3917.3,3916.4,0.34650322]
[1734351354098,0.8149,3917.3,3916.4,1.36784322]
[1734351354515,0.55,3917.2,3916.0,0.1087]
[1734351354683,0.759,3916.6,3915.3,2.90979441]
[1734351354887,3.31224,3916.6,3915.5,1.02157]
[1734351355095,3.31224,3916.6,3915.6,0.39313644]
[1734351355412,3.31224,3916.6,3915.5,1.02157]
[1734351355610,3.31224,3916.6,3915.3,2.90979441]
[1734351355817,0.759,3916.6,3915.4,0.02553566]
[1734351356019,0.759,3916.6,3915.7,1.0215]
[1734351359193,0.759,3916.6,3915.8,0.02553565]
[1734351359396,0.759,3916.6,3915.9,1.02145]
[1734351359700,0.759,3916.6,3916.0,0.34651422]
[1734351360304,0.8102,3917.3,3916.3,1.02134]
[1734351360917,0.8102,3917.3,3916.1,2.44369219]
[1734351361117,0.8102,3917.3,3916.2,1.02139]
[1734351361427,0.8102,3917.3,3916.4,1.02132]
[1734351361948,0.8102,3917.3,3916.3,0.44865122]
[1734351361949,0.8102,3917.3,3916.9,1.02121]
[1734351362145,0.8102,3917.3,3916.6,0.1087]
[1734351362618,0.8102,3917.3,3916.6,1.12998]
[1734351362787,0.8102,3917.3,3916.6,0.1087]
[1734351362987,0.8102,3917.3,3916.7,0.35737022]
[1734351363302,0.7795,3918.3,3917.2,1.02113]
[1734351363484,0.7795,3918.3,3916.9,2.44369219]
[1734351363485,0.7989,3918.2,3916.9,2.44369219]
[1734351364119,0.7989,3918.2,3917.3,1.0211]
[1734351364636,0.7989,3918.2,3916.9,2.44369219]
[1734351364788,3.35111,3918.2,3917.1,1.02115]
[1734351364987,2.55232,3918.1,3917.0,1.40340824]
[1734351365189,0.7989,3918.2,3917.1,1.02115]
[1734351365887,0.7989,3918.2,3917.0,0.38222824]
[1734351366092,0.7989,3918.2,3917.2,1.02111]
[1734351366525,0.7989,3918.2,3917.1,0.2851446]
[1734351366829,0.7989,3918.2,3917.4,1.27634]
[1734351368205,0.7989,3918.2,3917.6,1.27628]
[1734351368608,0.7989,3918.2,3917.4,1.27635]
[1734351368952,0.7989,3918.2,3917.5,0.38287422]
[1734351369961,0.7989,3918.2,3917.5,1.65917422]
[1734351370166,0.7989,3918.2,3917.5,0.38287422]
[1734351371448,0.7989,3918.2,3917.2,1.2764]
[1734351371656,0.7989,3918.2,3917.1,0.2851446]
[1734351372104,0.7989,3918.2,3917.2,1.27641]
[1734351372305,0.7989,3918.2,3917.5,1.27632]
[1734351372707,0.7989,3918.2,3917.3,3.72007219]
[1734351372901,0.7989,3918.2,3917.4,0.40052168]
[1734351373343,0.7989,3918.2,3917.4,1.67686168]
[1734351373668,0.7989,3918.2,3917.5,1.27632]
[1734351374256,0.7989,3918.2,3917.4,0.40052168]
[1734351375436,3.35111,3918.2,3917.4,0.40052168]
[1734351375962,0.7989,3918.2,3917.5,0.28442139]
[1734351376268,0.7989,3918.2,3917.1,1.27644]
[1734351376409,0.7989,3918.2,3917.2,1.27641]
[1734351376609,0.7989,3918.2,3917.0,1.02118]
[1734351376894,2.55225,3918.1,3917.0,1.02118]
[1734351377009,0.799,3918.0,3917.1,0.35735722]
[1734351377209,0.799,3918.0,3917.2,1.02112]
[1734351377609,0.799,3918.0,3917.3,1.02109]
[1734351377806,0.799,3918.0,3917.3,3.46478219]
[1734351378755,0.799,3918.0,3917.4,1.02107]
[1734351379057,0.799,3918.0,3917.5,0.44858522]
[1734351380408,2.55154,3919.2,3917.6,1.04654364]
[1734351380686,0.7954,3918.7,3917.6,1.02102]
[1734351382258,3.34727,3918.7,3917.6,1.02102]
[1734351382555,3.34727,3918.7,3917.7,0.15783052]
[1734351382766,0.7954,3918.7,3917.7,0.15783052]
[1734351382913,3.34728,3918.7,3917.5,0.55728522]
[1734351383436,3.34728,3918.7,3917.5,1.57833522]
[1734351384177,3.34728,3918.7,3917.6,1.02103]
[1734351386058,3.34728,3918.7,3917.5,0.55728522]
[1734351386974,3.34728,3918.7,3917.5,1.32307522]
[1734351387175,3.34728,3918.7,3917.6,0.37667674]
[1734351388179,2.55193,3918.6,3917.6,0.37667674]
[1734351388882,3.33831,3918.5,3917.6,0.37667674]
[1734351389435,0.7863,3918.5,3917.6,0.37667674]
[1734351390117,0.7613,3918.1,3917.3,1.12490554]
[1734351390734,0.7613,3918.1,3917.5,1.12490554]
[1734351392065,0.7613,3918.1,3917.2,2.43690857]
[1734351392173,0.7613,3918.1,3917.3,0.32027686]
[1734351393974,2.55233,3918.0,3917.3,0.32027686]
[1734351394206,0.8287,3917.9,3916.8,2.43690857]
[1734351396303,2.5526,3917.6,3916.6,0.1087]
[1734351396493,0.7695,3917.5,3916.4,5.43690857]
[1734351397103,0.7695,3917.5,3916.8,2.43690857]
[1734351397297,0.7695,3917.5,3916.9,0.24369086]
[1734351398353,1.04586034,3918.6,3917.3,2.43690857]
[1734351398490,0.7695,3918.5,3917.9,2.43690857]
[1734351398687,0.7695,3918.5,3917.5,2.43690857]
[1734351398891,0.7695,3918.5,3917.6,0.24624322]
[1734351399135,1.04586034,3919.0,3917.6,0.24624322]
[1734351399433,0.8331,3917.9,3916.7,6.50258989]
[1734351399600,0.8331,3917.9,3916.7,2.43690857]
[1734351399943,0.8331,3917.8,3916.7,2.43690857]
[1734351400088,0.8331,3917.8,3916.8,1.21203157]
[1734351400293,0.8331,3917.8,3917.1,2.43690857]
[1734351402806,0.8331,3917.8,3916.9,0.52252615]
[1734351404521,2.55252,3917.7,3916.9,0.52252615]
[1734351404838,0.825,3917.5,3916.9,0.52252615]
[1734351406009,0.825,3917.5,3917.0,1.21475286]
[1734351406193,0.825,3917.5,3916.7,3.50258989]
[1734351406387,0.825,3917.5,3916.8,1.21481065]
[1734351406586,3.3777,3917.5,3916.7,3.74628075]
[1734351406927,3.3777,3917.5,3916.8,1.21475413]
[1734351407090,3.3777,3917.5,3916.7,3.74628075]
[1734351407292,3.3777,3917.5,3916.8,1.21475414]
[1734351407501,3.3777,3917.5,3916.7,3.74628075]
[1734351407716,3.3777,3917.5,3916.8,1.21467478]
[1734351408027,3.3777,3917.5,3916.9,1.21467478]
[1734351408207,2.5527,3917.5,3916.7,3.50258989]
[1734351408421,0.7836,3917.4,3916.8,1.21487068]
[1734351408757,0.7836,3917.4,3916.2,1.06568132]
[1734351408758,2.55311,3916.8,3916.2,1.06568132]
[1734351408943,2.55311,3916.8,3915.8,4.55736646]
[1734351408944,0.7836,3916.7,3915.9,1.06568132]
[1734351409124,0.7836,3916.7,3915.9,2.28082829]
[1734351409516,0.7836,3916.3,3915.6,2.6642033]
[1734351409719,0.7836,3916.3,3915.7,1.93679922]
[1734351409981,0.7836,3916.3,3915.7,0.72215698]
[1734351410260,0.7836,3916.3,3915.5,1.06568132]
[1734351410464,0.7836,3916.3,3915.5,1.21468632]
[1734351410662,3.33705,3916.3,3915.4,3.50258989]
[1734351410819,3.33705,3916.3,3915.5,1.2139617]
[1734351411028,3.33705,3916.3,3915.4,3.50258989]
[1734351411227,3.33705,3916.3,3915.5,1.73494341]
[1734351411436,3.33705,3916.3,3915.5,0.52098119]
[1734351412674,2.09172069,3917.5,3915.5,0.52098119]
[1734351412675,0.7836,3916.7,3915.9,2.54560857]
[1734351412831,0.7836,3916.7,3916.3,2.43690857]
[1734351414474,0.7836,3916.7,3915.9,3.6126893]
[1734351414713,0.7836,3916.7,3916.0,0.57240604]
[1734351415657,2.55324,3916.6,3915.6,1.06708073]
[1734351415815,0.8119,3916.5,3915.5,2.95788976]
[1734351419063,4.05769392,3917.5,3915.5,0.52098119]
[1734351419064,2.55337,3916.4,3915.5,0.52098119]
[1734351419286,0.7505,3916.3,3915.1,3.5039893]
[1734351419487,0.7505,3916.3,3915.2,1.21103792]
[1734351419656,0.7505,3916.3,3915.3,0.55899872]
[1734351421202,1.05769392,3917.5,3915.9,2.43690857]
[1734351421354,0.788,3917.5,3916.3,3.20292857]
[1734351421558,0.788,3917.5,3916.4,0.766]
[1734351421797,0.788,3917.5,3916.5,0.32029086]
[1734351422686,0.788,3917.5,3916.6,0.76597]
[1734351424007,0.788,3917.5,3916.5,0.32029086]
[1734351424660,0.788,3917.5,3916.2,0.1087]
[1734351424661,0.8272,3917.4,3916.0,0.76607]
[1734351424856,0.8272,3917.4,3915.6,1.06708073]
[1734351424857,0.55,3917.3,3915.6,1.06708073]
[1734351425061,0.8272,3916.9,3915.5,3.31176857]
[1734351425274,0.8272,3916.8,3915.5,3.31176857]
[1734351425474,0.8272,3916.8,3915.5,3.96561548]
[1734351425792,0.8272,3916.7,3915.5,3.09075548]
[1734351426008,0.8272,3916.5,3915.5,2.43690857]
[1734351426717,0.8272,3916.4,3915.5,2.43690857]
[1734351427476,3.38056,3916.4,3915.2,0.1087]
[1734351427826,3.38056,3916.4,3915.2,0.87492]
[1734351428321,0.8272,3916.4,3915.3,0.76621]
[1734351428470,0.8272,3916.4,3915.4,0.33118186]
[1734351429332,2.55343,3916.3,3915.4,0.33118186]
[1734351429624,0.8272,3916.4,3915.4,0.33118186]
[1734351430742,3.38056,3916.4,3915.4,0.33118186]
[1734351431039,2.55343,3916.3,3915.4,0.33118186]
[1734351431249,0.8272,3916.4,3915.4,1.09737186]
[1734351431587,0.8272,3916.4,3915.5,2.43690857]
[1734351432150,2.68299966,3917.4,3915.5,2.43690857]
[1734351432151,1.58654089,3917.8,3916.3,2.43690857]
[1734351432349,0.8055,3916.8,3916.4,0.766]
[1734351432649,0.8055,3916.8,3916.5,0.76599]
[1734351432792,2.5526,3917.6,3916.5,0.76599]
[1734351432989,0.8108,3917.5,3916.7,2.43690857]
[1734351433198,0.8108,3917.5,3916.8,0.76592]
[1734351434549,0.8108,3917.5,3916.7,2.54560857]
[1734351434846,0.8108,3917.5,3916.7,2.43690857]
[1734351435043,0.8108,3917.5,3916.8,0.24369086]
[1734351437945,0.8108,3917.5,3916.4,1.02134]
[1734351438237,0.8108,3917.5,3916.3,2.43690857]
[1734351438454,0.8183,3917.4,3916.3,2.43690857]
[1734351439809,0.8319,3917.3,3916.3,2.43690857]
[1734351440338,0.8219,3916.9,3915.9,2.43690857]
[1734351440542,0.8219,3916.8,3915.9,2.9003325]
[1734351440898,3.37508,3916.7,3915.5,2.80121161]
[1734351441106,0.8219,3916.6,3915.5,3.82279161]
[1734351441307,0.8219,3916.6,3915.6,2.2330958]
[1734351441557,0.8219,3916.6,3915.6,1.02155]
[1734351441762,0.8219,3916.6,3915.7,0.48898423]
[1734351441906,0.8219,3916.6,3915.5,2.80121161]
[1734351442253,2.55336,3916.5,3915.5,2.80121161]
[1734351442402,0.8219,3916.6,3915.5,2.43690857]
[1734351442764,0.8219,3916.6,3915.9,2.43690857]
[1734351443054,0.8219,3916.6,3916.3,2.43690857]
[1734351443566,0.8219,3916.6,3915.9,2.43690857]
[1734351445266,0.8219,3916.6,3915.5,2.43690857]
[1734351445267,2.55343,3916.3,3915.5,2.43690857]
[1734351445555,0.7588,3915.9,3915.0,1.06708073]
[1734351445755,0.7588,3915.9,3915.1,1.21134252]
[1734351445960,0.7588,3915.9,3914.9,0.1087]
[1734351446163,0.7588,3915.9,3915.0,1.21136633]
[1734351446325,0.7588,3915.9,3915.1,2.43690857]
[1734351447406,3.31251,3915.9,3914.7,4.5257493]
[1734351447654,0.8039,3916.2,3914.5,1.06708073]
[1734351447961,0.8277,3915.4,3914.3,3.5039893]
[1734351448142,0.8277,3915.4,3914.4,0.52133104]
[1734351448707,0.8277,3915.4,3914.5,1.21128426]
[1734351449026,0.8277,3915.4,3914.4,0.52133104]
[1734351449994,2.55423,3915.1,3914.4,0.52133104]
[1734351450161,0.8127,3915.0,3913.9,3.45888857]
[1734351450312,0.8127,3915.0,3914.0,1.21078026]
[1734351450522,0.8127,3915.0,3913.9,2.43690857]
[1734351451409,0.8127,3915.0,3913.9,3.45889857]
[1734351451722,0.8127,3915.0,3913.5,4.60062109]
[1734351451723,2.55441,3914.8,3913.5,4.6347793]
[1734351451925,2.55441,3914.8,3913.6,1.8341672]
[1734351452111,0.7859,3914.7,3913.6,0.62354004]
[1734351452314,0.7859,3914.7,3913.0,2.13416146]
[1734351452315,0.7859,3914.3,3913.2,1.06708073]
[1734351452566,2.55531,3913.5,3912.7,1.06708073]
[1734351452771,0.8003,3913.4,3912.4,1.06708073]
[1734351452910,2.55546,3913.2,3912.3,1.06708073]
[1734351453260,0.8003,3913.4,3912.3,1.06708073]
[1734351453261,0.8003,3912.9,3912.3,1.1986688]
[1734351453557,2.55573,3912.8,3912.0,0.2488]
[1734351453854,2.55578,3912.7,3912.0,0.2488]
[1734351454059,2.55585,3912.6,3912.0,0.2488]
[1734351454212,0.7993,3912.5,3912.0,0.2488]
[1734351458653,3.35527,3912.5,3912.0,0.2488]
[1734351458958,2.55605,3912.3,3912.0,0.2488]
[1734351459368,0.7863,3912.2,3912.0,0.2488]
[1734351460915,2.55617,3912.1,3912.0,0.2488]
[1734351461121,2.890417,3912.1,3912.0,0.2488]
[1734351461320,4.226717,3912.1,3912.0,0.2488]
[1734351464076,0.7845,3911.9,3911.0,0.6]
[1734351464229,0.7845,3911.3,3911.0,0.6]
[1734351464428,2.55682,3911.1,3911.0,0.6]
[1734351465454,0.7845,3911.3,3911.0,0.6]
[1734351465677,0.55,3911.2,3911.0,0.6]
[1734351468960,0.7845,3911.3,3911.0,0.6]
[1734351469678,0.334106,3911.2,3911.0,0.6]
[1734351470330,0.7845,3911.3,3911.0,0.6]
[1734351470571,0.55,3911.2,3911.0,0.6]
[1734351470941,3.1068,3911.2,3911.0,0.6]
[1734351471564,0.7845,3911.3,3911.0,0.6]
[1734351471565,3.10682,3911.1,3911.0,0.6]
[1734351471744,3.87752,3911.1,3911.0,0.6]
[1734351471967,7.76462986,3911.1,3911.0,0.20655149]
[1734351473347,7.76462986,3911.1,3909.1,0.3575]
[1734351473348,0.7978,3910.1,3909.1,0.3575]
[1734351473737,3.35528,3910.1,3909.1,0.3575]
[1734351473992,0.7978,3910.1,3909.1,1.38074]
[1734351474849,0.7978,3910.1,3909.1,0.3575]
[1734351475032,0.7978,3910.1,3909.4,1.02317]
[1734351475980,0.7978,3910.1,3909.2,0.138078]
[1734351476165,0.7978,3910.1,3909.5,1.02314]
[1734351476688,0.7978,3910.1,3909.6,1.02311]
[1734351476889,0.8236,3910.4,3909.6,1.02311]
[1734351477436,0.8236,3910.4,3909.7,1.02308]
[1734351477638,0.8236,3911.0,3909.4,0.02557693]
[1734351477949,0.8236,3911.0,3909.5,0.31645635]
[1734351478136,3.3805,3911.0,3909.8,1.02304]
[1734351478483,3.3805,3911.0,3909.9,1.02304]
[1734351478653,0.8236,3911.0,3910.1,1.02298]
[1734351478873,0.8236,3911.0,3909.9,1.02303]
[1734351479186,0.8236,3911.0,3909.7,0.564]
[1734351479187,2.55699,3910.9,3909.8,1.02305]
[1734351479383,0.8236,3911.0,3909.9,1.02302]
[1734351479585,1.161638,3911.0,3909.9,1.02302]
[1734351479742,1.161638,3911.0,3910.0,1.023]
[1734351479943,0.8236,3911.0,3910.0,1.023]
[1734351480483,0.8236,3911.0,3909.7,0.564]
[1734351481045,0.8236,3911.0,3910.1,1.02298]
[1734351481645,0.8236,3911.0,3910.3,1.02291]
[1734351482074,2.85395072,3915.0,3909.8,1.02306]
[1734351482075,0.774,3911.4,3910.4,2.43690857]
[1734351482282,0.774,3911.4,3910.5,0.26925981]
[1734351482541,0.774,3911.4,3910.8,1.02279]
[1734351482772,0.774,3911.4,3910.8,2.43690857]
[1734351483007,2.43690857,3913.0,3910.8,2.43690857]
[1734351483008,0.774,3911.8,3910.8,2.46247625]
[1734351483317,0.774,3911.8,3911.3,1.02267]
[1734351483821,0.774,3911.8,3910.8,3.48525625]
[1734351483822,0.774,3911.8,3911.1,1.02272]
[1734351484367,0.774,3911.8,3910.8,3.45968857]
[1734351484573,0.774,3911.8,3910.9,0.40236886]
[1734351484979,0.774,3911.8,3911.1,1.0227]
[1734351485667,0.774,3911.8,3910.9,0.40236886]
[1734351485970,0.774,3911.8,3911.4,1.02264]
[1734351486171,2.55598,3912.4,3911.4,1.02264]
[1734351486172,0.8127,3912.1,3911.4,1.02264]
[1734351486370,0.8127,3912.1,3911.3,0.564]
[1734351486810,0.8127,3912.1,3911.3,0.72267]
[1734351487197,0.8127,3912.1,3911.4,1.02264]
[1734351488277,0.8127,3912.1,3911.6,2.43690857]
[1734351488476,0.55,3912.9,3912.0,1.02248]
[1734351488709,0.8127,3913.0,3912.4,1.02238]
[1734351489216,2.43690857,3914.3,3912.4,1.02238]
[1734351489217,0.8127,3913.3,3912.4,3.00090857]
[1734351489599,0.8127,3913.3,3912.5,1.02236]
[1734351490293,0.8127,3913.3,3912.4,3.00090857]
[1734351490494,0.8127,3914.3,3912.5,0.32564718]
[1734351490839,2.55489,3914.1,3912.5,0.30009086]
[1734351491846,2.55506,3913.8,3912.7,1.02229]
[1734351492138,0.7652,3913.7,3912.7,1.0223]
[1734351492352,1.097226,3913.7,3912.7,1.0223]
[1734351492702,0.7652,3913.7,3912.7,1.0223]
[1734351493535,0.7652,3913.7,3912.8,1.02228]
[1734351493719,0.7652,3913.7,3912.8,3.45918857]
[1734351494142,0.7652,3913.7,3912.9,1.02225]
[1734351494467,0.7652,3913.7,3913.0,1.02222]
[1734351494680,0.7652,3913.7,3913.2,2.43690857]
[1734351494968,0.8053,3914.2,3913.3,1.02214]
[1734351495857,0.8053,3914.2,3913.2,3.00090857]
[1734351496058,0.8053,3914.2,3913.2,2.43690857]
[1734351496367,0.8053,3914.2,3913.2,3.45907857]
[1734351496567,0.8053,3914.2,3913.3,1.02215]
[1734351496770,0.8053,3914.2,3913.4,1.02212]
[1734351497617,0.8227,3914.6,3913.6,2.43690857]
[1734351497817,0.8227,3914.6,3914.0,3.45887857]
[1734351499116,0.8227,3914.6,3914.0,2.43690857]
[1734351499472,0.8227,3914.6,3914.2,1.02191]
[1734351499615,0.7665,3915.0,3914.0,3.45887857]
[1734351499822,0.332066,3914.9,3914.0,2.43690857]
[1734351500077,0.7665,3915.0,3914.0,3.45887857]
[1734351500217,0.7665,3915.0,3914.0,2.43690857]
[1734351500764,0.7665,3915.0,3914.2,1.02189]
[1734351501952,0.7665,3915.0,3914.2,1.04743531]
[1734351502286,0.8078,3915.8,3914.9,2.43690857]
[1734351502455,0.8078,3915.8,3915.0,1.02169]
[1734351502795,0.8078,3915.8,3914.9,2.43690857]
[1734351502994,0.336142,3915.7,3914.9,2.43690857]
[1734351503502,3.33208,3915.6,3914.5,3.45872857]
[1734351503664,0.7782,3915.6,3914.5,2.43690857]
[1734351504002,0.7782,3915.6,3914.7,1.02177]
[1734351504147,0.7782,3915.6,3914.5,2.43690857]
[1734351504562,0.7782,3915.6,3914.7,1.02176]
[1734351504767,0.333201,3915.5,3914.7,1.02176]
[1734351505216,0.7782,3915.6,3915.0,1.0217]
[1734351505733,0.7782,3915.6,3915.1,1.02167]
[1734351505932,1.3493,3916.5,3915.1,1.02167]
[1734351506216,1.3493,3916.5,3914.9,2.43690857]
[1734351506217,0.7865,3916.4,3914.9,2.43690857]
[1734351506416,0.7865,3915.9,3914.9,2.43690857]
[1734351506835,0.7865,3915.2,3914.2,1.02191]
[1734351506984,0.7865,3915.2,3914.3,1.02188]
[1734351507529,0.7865,3915.2,3914.5,2.43690857]
[1734351509516,0.7865,3915.2,3914.5,3.45873857]
[1734351510091,0.7865,3915.2,3914.0,1.58595]
[1734351510092,0.7865,3915.2,3914.1,2.43690857]
[1734351510299,2.55454,3914.6,3913.4,3.38140271]
[1734351510623,0.7527,3914.7,3913.4,3.00090857]
[1734351510823,0.7527,3914.1,3913.4,2.43690857]
[1734351511287,0.7527,3914.1,3913.4,3.45902857]
[1734351512389,0.7527,3914.1,3913.4,2.43690857]
[1734351512632,0.7527,3914.1,3913.4,3.45902857]
[1734351513085,0.7527,3914.1,3913.4,3.86133143]
[1734351513834,0.7527,3914.1,3913.5,1.02209]
[1734351514007,2.55454,3914.6,3913.6,1.02207]
[1734351514205,0.8285,3914.5,3913.4,3.86133143]
[1734351514432,0.8285,3914.5,3913.4,2.83921143]
[1734351514433,2.55474,3914.3,3913.4,2.83921143]
[1734351514929,0.8285,3914.5,3913.4,2.83921143]
[1734351514930,0.8285,3914.5,3913.8,1.02201]
[1734351515137,0.8285,3914.5,3913.9,0.02554653]
[1734351515369,2.55405,3915.4,3914.2,2.43690857]
[1734351515370,0.8121,3915.1,3914.2,2.43690857]
[1734351515497,0.8121,3915.1,3914.7,2.43690857]
[1734351515694,0.8121,3915.9,3914.7,2.43690857]
[1734351515900,2.55394,3915.6,3914.7,2.43690857]
[1734351516207,2.55395,3915.5,3914.5,0.564]
[1734351516662,3.36617,3915.4,3914.1,1.02192]
[1734351516837,2.55429,3915.0,3913.9,3.45889857]
[1734351517138,2.55415,3915.2,3914.0,0.40228986]
[1734351517338,0.8121,3915.4,3914.3,2.43690857]
[1734351517493,2.55415,3915.2,3914.3,2.43690857]
[1734351517695,0.8121,3915.4,3914.3,2.43690857]
[1734351517890,0.8121,3914.7,3914.0,0.40228986]
[1734351518139,0.8121,3914.7,3914.1,0.28391984]
[1734351518496,2.55426,3915.1,3914.3,2.43690857]
[1734351518846,2.5541,3915.3,3914.3,2.43690857]
[1734351519393,0.8121,3915.5,3914.3,2.43690857]
[1734351519701,2.55425,3915.1,3914.3,0.27208284]
[1734351520023,0.7603,3915.2,3913.9,3.45889857]
[1734351520230,2.55435,3914.9,3913.9,3.45889857]
[1734351521095,2.55448,3914.7,3913.7,0.564]
[1734351521338,0.55,3915.3,3913.7,0.564]
[1734351521507,0.7971,3914.5,3913.8,0.32848297]
[1734351521713,3.3517,3914.5,3913.8,0.32848297]
[1734351522140,0.7971,3914.5,3913.8,0.32848297]
[1734351522349,2.55487,3914.1,3913.5,0.28392114]
[1734351522512,2.55487,3914.1,3913.1,3.00090857]
[1734351523100,2.55487,3914.1,3913.1,4.02310857]
[1734351524036,0.7971,3914.5,3913.1,4.02310857]
[1734351524037,2.55473,3914.3,3913.1,4.02310857]
[1734351524240,2.55473,3914.3,3913.2,1.02217]
[1734351524742,0.55,3914.4,3913.1,3.00090857]
[1734351524913,2.55473,3914.3,3913.2,0.30009086]
[1734351525243,0.7971,3914.5,3913.5,2.43690857]
[1734351525425,0.7971,3914.5,3913.7,0.564]
[1734351525603,0.7971,3914.5,3913.7,1.58604]
[1734351525849,0.7552,3914.9,3913.9,2.43690857]
[1734351526047,0.7552,3914.9,3914.0,0.30264551]
[1734351526828,3.30956,3914.9,3914.0,0.30264551]
[1734351527108,2.55436,3914.9,3914.0,0.30264551]
[1734351528849,2.55421,3915.1,3914.0,0.30264551]
[1734351529046,2.55421,3915.1,3914.0,1.32461551]
[1734351529204,2.55421,3915.1,3914.1,0.37870693]
[1734351529634,0.7552,3915.2,3914.1,0.37870693]
[1734351530237,3.34616,3914.5,3913.7,0.564]
[1734351533299,0.7915,3914.5,3913.7,0.564]
[1734351534249,2.55428,3915.0,3913.5,3.45899857]
[1734351534250,0.7758,3915.4,3914.5,1.02182]
[1734351534543,0.7758,3915.4,3914.4,0.564]
[1734351534544,0.7758,3915.9,3914.7,3.45868857]
[1734351534759,2.55389,3915.6,3914.8,0.348423]
[1734351535310,2.55381,3915.8,3914.8,0.348423]
[1734351535940,0.7758,3915.9,3914.8,0.348423]
[1734351536140,2.55394,3915.6,3914.8,0.348423]
[1734351536337,2.55394,3915.6,3914.9,0.27853316]
[1734351537254,2.55396,3915.5,3914.9,0.27853316]
[1734351537456,2.55396,3915.5,3914.5,1.02183]
[1734351537621,2.54472782,3915.5,3914.5,1.02183]
[1734351541067,0.7758,3915.9,3914.5,1.02183]
[1734351541358,0.7758,3915.9,3914.8,0.564]
[1734351541516,2.55378,3915.8,3914.9,0.30009086]
[1734351542840,1.05769392,3916.2,3915.2,0.564]